lending/lending_fUSD_20240110
["ID","MTS","AMOUNT","RATE_DAILY","PERIOD"]
[311063289,1704891172029,-848.07,0.00033698,2]
[311063290,1704891172038,-783.14,0.00033698,2]
[311063291,1704891172048,-500.0,0.00033698,2]
[311063292,1704891172058,-1634.17,0.00033698,2]
[311063293,1704891172067,-892.34,0.00033698,2]
[311063294,1704891172077,-500.0,0.00033698,2]
[311063295,1704891172087,-350.35303602,0.00033698,2]
[311063296,1704891172097,-500.0,0.00033698,2]
[311063297,1704891172106,-1731.94,0.00033698,2]
[311063298,1704891172116,-1300.74,0.00033698,2]
[311063299,1704891172126,-1118.35,0.00033698,2]
[311063300,1704891172136,-821.71,0.00033698,2]
[311063301,1704891172145,-1097.53,0.00033698,2]
[311063302,1704891172155,-1115.5,0.00033698,2]
[311063303,1704891172165,-799.47,0.00033698,2]
[311063304,1704891172175,-500.0,0.00033698,2]
[311063305,1704891172185,-500.0,0.00033698,2]
[311063306,1704891172197,-500.0,0.00033698,2]
[311063307,1704891172206,-1438.57,0.00033698,2]
[311063308,1704891172216,-1466.84,0.00033698,2]
[311063309,1704891172226,-652.51,0.00033698,2]
[311063310,1704891172236,-500.0,0.00033698,2]
[311063311,1704891172245,-1106.08,0.00033698,2]
[311063312,1704891172255,-1804.0,0.00033698,2]
[311063313,1704891172265,-1166.35,0.00033698,2]
[311063314,1704891172274,-1134.06,0.00033698,2]
[311063315,1704891172285,-1196.42,0.00033698,2]
[311063316,1704891172295,-545.73,0.00033698,2]
[311063317,1704891172305,-848.12,0.00033698,2]
[311063318,1704891172314,-1566.38,0.00033698,2]
[311063319,1704891172324,-714.75,0.00033698,2]
[311063320,1704891172334,-907.54,0.00033698,2]
[311063321,1704891172347,-556.57,0.00033698,2]
[311063322,1704891172357,-924.42,0.00033698,2]
[311063323,1704891172367,-500.0,0.00033698,2]
[311063324,1704891172377,-2743.08,0.00033698,2]
[311063325,1704891172388,-500.0,0.00033698,2]
[311063326,1704891172397,-500.0,0.00033698,2]
[311063327,1704891172407,-500.0,0.00033698,2]
[311063328,1704891172416,-1841.24,0.00033698,2]
[311063329,1704891172428,-1407.91,0.00033698,2]
[311063330,1704891172438,-627.59,0.00033698,2]
[311063331,1704891172451,-1648.35,0.00033698,2]
[311063332,1704891172461,-546.87,0.00033698,2]
[311063333,1704891172471,-574.07,0.00033698,2]
[311063334,1704891172482,-1615.48,0.00033698,2]
[311063335,1704891172491,-997.75,0.00033698,2]
[311063336,1704891172501,-555.68,0.00033698,2]
[311063337,1704891172511,-783.23,0.00033698,2]
[311063338,1704891172521,-1436.16,0.00033698,2]
[311063339,1704891172530,-1687.92,0.00033698,2]
[311063340,1704891172540,-500.0,0.00033698,2]
[311063341,1704891172550,-893.83,0.00033698,2]
[311063342,1704891172560,-608.29,0.00033698,2]
[311063343,1704891172570,-1132.03,0.00033698,2]
[311063344,1704891172580,-1380.57,0.00033698,2]
[311063345,1704891172590,-933.87,0.00033698,2]
[311063346,1704891172600,-500.0,0.00033698,2]
[311063347,1704891172609,-995.9,0.00033698,2]
[311063348,1704891172619,-957.42,0.00033698,2]
[311063349,1704891172628,-500.0,0.00033698,2]
[311063350,1704891172638,-895.94,0.00033698,2]
[311063351,1704891172648,-1856.22,0.00033698,2]
[311063352,1704891172657,-1480.74,0.00033698,2]
[311063353,1704891172666,-500.0,0.00033698,2]
[311063354,1704891172676,-776.38,0.00033698,2]
[311063355,1704891172686,-1298.12,0.00033698,2]
[311063356,1704891172698,-333.27,0.00033698,2]
[311063357,1704891172707,-1188.98,0.00033698,2]
[311063358,1704891172717,-791.87,0.00033698,2]
[311063359,1704891172727,-577.69,0.00033698,2]
[311063360,1704891172737,-700.71,0.00033698,2]
[311063361,1704891172747,-682.9,0.00033698,2]
[311063362,1704891172756,-923.76,0.00033698,2]
[311063363,1704891172766,-1290.28,0.00033698,2]
[311063364,1704891172776,-672.12,0.00033698,2]
[311063365,1704891172786,-694.02,0.00033698,2]
[311063366,1704891172797,-751.24,0.00033698,2]
[311063367,1704891172806,-1037.2,0.00033698,2]
[311063368,1704891172816,-791.74,0.00033698,2]
[311063369,1704891172826,-2135.41,0.00033698,2]
[311063370,1704891172835,-630.74,0.00033698,2]
[311063371,1704891172844,-500.0,0.00033698,2]
[311063372,1704891172854,-500.0,0.00033698,2]
[311063373,1704891172863,-1065.89,0.00033698,2]
[311063374,1704891172872,-1611.31,0.00033698,2]
[311063375,1704891172882,-500.0,0.00033698,2]
[311063376,1704891172891,-537.76,0.00033698,2]
[311063377,1704891172901,-500.0,0.00033698,2]
[311063378,1704891172910,-1096.88,0.00033698,2]
[311063379,1704891172918,-500.0,0.00033698,2]
[311063380,1704891172927,-1235.12,0.00033698,2]
[311063381,1704891172936,-508.12,0.00033698,2]
[311063382,1704891172947,-1351.54,0.00033698,2]
[311063383,1704891172957,-1332.96,0.00033698,2]
[311063384,1704891172966,-500.0,0.00033698,2]
[311063385,1704891172976,-525.51,0.00033698,2]
[311063386,1704891172986,-500.0,0.00033698,2]
[311063387,1704891172996,-500.0,0.00033698,2]
[311063388,1704891173005,-500.0,0.00033698,2]
[311063389,1704891173015,-2153.22,0.00033698,2]
[311063390,1704891173025,-894.32,0.00033698,2]
[311063391,1704891173034,-1551.48,0.00033698,2]
[311063392,1704891173043,-551.86,0.00033698,2]
[311063393,1704891173052,-1823.35,0.00033698,2]
[311063394,1704891173062,-656.22,0.00033698,2]
[311063395,1704891173071,-903.93,0.00033698,2]
[311063396,1704891173080,-784.54,0.00033698,2]
[311063397,1704891173090,-1466.91,0.00033698,2]
[311063398,1704891173100,-1006.56,0.00033698,2]
[311063399,1704891173109,-1655.17,0.00033698,2]
[311063400,1704891173119,-3133.81,0.00033698,2]
[311063401,1704891173129,-761.32,0.00033698,2]
[311063402,1704891173138,-500.0,0.00033698,2]
[311063403,1704891173148,-1170.77,0.00033698,2]
[311063404,1704891173157,-533.08,0.00033698,2]
[311063405,1704891173167,-500.0,0.00033698,2]
[311063406,1704891173176,-1368.59,0.00033698,2]
[311063407,1704891173186,-661.49,0.00033698,2]
[311063408,1704891173197,-1618.49,0.00033698,2]
[311063409,1704891173206,-696.22,0.00033698,2]
[311063410,1704891173216,-500.0,0.00033698,2]
[311063411,1704891173225,-8919.11,0.00033698,2]
[311063412,1704891173235,-480.57949157,0.00033698,2]
[311063413,1704891173245,-813.18,0.00033698,2]
[311063414,1704891173254,-500.0,0.00033698,2]
[311063415,1704891173263,-916.52,0.00033698,2]
[311063416,1704891173273,-484.51,0.00033698,2]
[311063417,1704891173283,-175.82747143,0.00033698,2]
[311063418,1704891173293,-1010.96,0.00033698,2]
[311063419,1704891173303,-500.0,0.00033698,2]
[311063420,1704891173312,-669.44,0.00033698,2]
[311063421,1704891173322,-1654.81,0.00033698,2]
[311063422,1704891173332,-895.64,0.00033698,2]
[311063423,1704891173342,-5719.09,0.00033698,2]
[311063424,1704891173352,-500.0,0.00033698,2]
[311063425,1704891173362,-3241.68,0.00033698,2]
[311063426,1704891173372,-2147.06,0.00033698,2]
[311063427,1704891173382,-500.0,0.00033698,2]
[311063428,1704891173392,-4583.07,0.00033698,2]
[311063429,1704891173402,-4104.47,0.00033698,2]
[311063430,1704891173412,-500.0,0.00033698,2]
[311063431,1704891173421,-1135.8,0.00033698,2]
[311063432,1704891173431,-4864.49,0.00033698,2]
[311063433,1704891173444,-1172.6,0.00033698,2]
[311063434,1704891173454,-1306.53,0.00033698,2]
[311063435,1704891173464,-605.42,0.00033698,2]
[311063436,1704891173474,-170.09916784,0.00033698,2]
[311063437,1704891173484,-613.66,0.00033698,2]
[311063438,1704891173494,-3152.91,0.00033698,2]
[311063439,1704891173504,-1839.88,0.00033698,2]
[311063440,1704891173514,-848.46,0.00033698,2]
[311063441,1704891173524,-1217.95,0.00033698,2]
[311063442,1704891173534,-3087.19,0.00033698,2]
[311063443,1704891173544,-1107.32,0.00033698,2]
[311063444,1704891173554,-1243.05,0.00033698,2]
[311063445,1704891173564,-1973.9,0.00033698,2]
[311063446,1704891173574,-500.0,0.00033698,2]
[311063447,1704891173585,-500.0,0.00033698,2]
[311063448,1704891173596,-998.38,0.00033698,2]
[311063449,1704891173607,-1702.03,0.00033698,2]
[311063450,1704891173617,-515.72,0.00033698,2]
[311063451,1704891173628,-500.0,0.00033698,2]
[311063452,1704891173639,-3061.74,0.00033698,2]
[311063453,1704891173649,-500.0,0.00033698,2]
[311063454,1704891173659,-996.01,0.00033698,2]
[311063455,1704891173670,-3064.76,0.00033698,2]
[311063456,1704891173679,-1068.18,0.00033698,2]
[311063457,1704891173690,-1153.97,0.00033698,2]
[311063458,1704891173708,-6469.31,0.00033698,2]
[311063459,1704891173720,-500.0,0.00033698,2]
[311063460,1704891173731,-20572.41,0.00033698,2]
[311063461,1704891173741,-508.77,0.00033698,2]
[311063462,1704891173752,-1211.96,0.00033698,2]
[311063463,1704891173762,-876.85,0.00033698,2]
[311063464,1704891173773,-8935.6,0.00033698,2]
[311063465,1704891173784,-500.0,0.00033698,2]
[311063466,1704891173794,-749.11,0.00033698,2]
[311063467,1704891173805,-1516.45,0.00033698,2]
[311063468,1704891173815,-835.36,0.00033698,2]
[311063469,1704891173825,-370.05,0.00033698,2]
[311063470,1704891173835,-500.0,0.00033698,2]
[311063471,1704891173845,-500.0,0.00033698,2]
[311063472,1704891173855,-3428.01,0.00033698,2]
[311063473,1704891173865,-51777.21,0.00033698,2]
[311063474,1704891173875,-1411.74,0.00033698,2]
[311063475,1704891173884,-2414.62,0.00033698,2]
[311063476,1704891173895,-500.0,0.00033698,2]
[311063477,1704891173904,-28702.52,0.00033698,2]
[311063478,1704891173914,-1449.33,0.00033698,2]
[311063479,1704891173924,-1741.33,0.00033698,2]
[311063480,1704891173938,-729.81,0.00033698,2]
[311063481,1704891173955,-500.0,0.00033698,2]
[311063482,1704891173971,-18242.51,0.00033698,2]
[311063483,1704891173981,-982.47,0.00033698,2]
[311063484,1704891173991,-1198.42,0.00033698,2]
[311063485,1704891174000,-3044.12,0.00033698,2]
[311063486,1704891174010,-7322.32,0.00033698,2]
[311063487,1704891174020,-669.65,0.00033698,2]
[311063488,1704891174030,-883.98,0.00033698,2]
[311063489,1704891174039,-936.43,0.00033698,2]
[311063490,1704891174049,-500.0,0.00033698,2]
[311063491,1704891174060,-1931.34,0.00033698,2]
[311063492,1704891174070,-596.34,0.00033698,2]
[311063493,1704891174080,-5311.52,0.00033698,2]
[311063494,1704891174090,-591.04,0.00033698,2]
[311063495,1704891174101,-1716.44,0.00033698,2]
[311063496,1704891174111,-756.46,0.00033698,2]
[311063497,1704891174120,-1935.34,0.00033698,2]
[311063498,1704891174130,-630.3,0.00033698,2]
[311063499,1704891174141,-11436.48,0.00033698,2]
[311063500,1704891174151,-896.69,0.00033698,2]
[311063501,1704891174161,-1335.68,0.00033698,2]
[311063502,1704891174171,-5273.56,0.00033698,2]
[311063503,1704891174181,-7205.25,0.00033698,2]
[311063504,1704891174193,-738.84,0.00033698,2]
[311063505,1704891174204,-500.0,0.00033698,2]
[311063506,1704891174214,-1192.7,0.00033698,2]
[311063507,1704891174224,-962.89,0.00033698,2]
[311063508,1704891174235,-717.02,0.00033698,2]
[311063509,1704891174246,-1285.43,0.00033698,2]
[311063510,1704891174257,-6876.74,0.00033698,2]
[311063511,1704891174268,-1732.97,0.00033698,2]
[311063512,1704891174279,-2245.33,0.00033698,2]
[311063513,1704891174289,-1567.49,0.00033698,2]
[311063514,1704891174300,-500.0,0.00033698,2]
[311063515,1704891174311,-790.0,0.00033698,2]
[311063516,1704891174322,-2499.19,0.00033698,2]
[311063517,1704891174338,-932.57,0.00033698,2]
[311063518,1704891174348,-2921.42,0.00033698,2]
[311063519,1704891174360,-6606.78,0.00033698,2]
[311063520,1704891174371,-783.63,0.00033698,2]
[311063521,1704891174381,-500.0,0.00033698,2]
[311063522,1704891174392,-4128.32,0.00033698,2]
[311063523,1704891174403,-7057.36,0.00033698,2]
[311063524,1704891174413,-682.44,0.00033698,2]
[311063525,1704891174424,-1293.22,0.00033698,2]
[311063526,1704891174434,-1047.14,0.00033698,2]
[311063527,1704891174449,-3328.34,0.00033698,2]
[311063528,1704891174460,-953.47,0.00033698,2]
[311063529,1704891174470,-1333.7,0.00033698,2]
[311063530,1704891174481,-2896.37,0.00033698,2]
[311063531,1704891174491,-668.72,0.00033698,2]
[311063532,1704891174501,-3025.67,0.00033698,2]
[311063533,1704891174512,-1350.56,0.00033698,2]
[311063534,1704891174522,-500.0,0.00033698,2]
[311063535,1704891174532,-2341.12,0.00033698,2]
[311063536,1704891174543,-2098.62,0.00033698,2]
[311063537,1704891174553,-703.2,0.00033698,2]
[311063538,1704891174563,-1930.74,0.00033698,2]
[311063539,1704891174573,-500.0,0.00033698,2]
[311063540,1704891174582,-5339.67,0.00033698,2]
[311063541,1704891174592,-503.67,0.00033698,2]
[311063542,1704891174603,-500.0,0.00033698,2]
[311063543,1704891174613,-2153.92,0.00033698,2]
[311063544,1704891174623,-4486.53,0.00033698,2]
[311063545,1704891174633,-1093.38,0.00033698,2]
[311063546,1704891174643,-3990.83,0.00033698,2]
[311063547,1704891174653,-843.02,0.00033698,2]
[311063548,1704891174663,-3222.77,0.00033698,2]
[311063549,1704891174673,-915.67,0.00033698,2]
[311063550,1704891174684,-500.0,0.00033698,2]
[311063551,1704891174699,-6104.89,0.00033698,2]
[311063552,1704891174710,-723.37,0.00033698,2]
[311063553,1704891174720,-273.09685202,0.00033698,2]
[311063554,1704891174729,-1149.9,0.00033698,2]
[311063555,1704891174739,-5798.03,0.00033698,2]
[311063556,1704891174748,-4625.49,0.00033698,2]
[311063557,1704891174757,-550.5,0.00033698,2]
[311063558,1704891174767,-13391.47,0.00033698,2]
[311063559,1704891174776,-1882.58,0.00033698,2]
[311063560,1704891174786,-1438.47,0.00033698,2]
[311063561,1704891174797,-3391.89,0.00033698,2]
[311063562,1704891174807,-17056.02,0.00033698,2]
[311063563,1704891174817,-1223.46,0.00033698,2]
[311063564,1704891174827,-1903.64,0.00033698,2]
[311063565,1704891174837,-535.17,0.00033698,2]
[311063566,1704891174847,-1447.74,0.00033698,2]
[311063567,1704891174857,-500.0,0.00033698,2]
[311063568,1704891174868,-903.74,0.00033698,2]
[311063569,1704891174879,-897.9,0.00033698,2]
[311063570,1704891174889,-1181.32,0.00033698,2]
[311063571,1704891174899,-3416.68,0.00033698,2]
[311063572,1704891174910,-500.0,0.00033698,2]
[311063573,1704891174920,-1323.99,0.00033698,2]
[311063574,1704891174930,-2765.04,0.00033698,2]
[311063575,1704891174940,-605.66,0.00033698,2]
[311063576,1704891174955,-1240.59,0.00033698,2]
[311063577,1704891174965,-1066.0,0.00033698,2]
[311063578,1704891174975,-3383.46,0.00033698,2]
[311063579,1704891174985,-1858.38,0.00033698,2]
[311063580,1704891174995,-556.19,0.00033698,2]
[311063581,1704891175005,-656.06,0.00033698,2]
[311063582,1704891175016,-1414.02,0.00033698,2]
[311063583,1704891175026,-1721.84,0.00033698,2]
[311063584,1704891175036,-506.73,0.00033698,2]
[311063585,1704891175046,-6948.27,0.00033698,2]
[311063586,1704891175056,-500.0,0.00033698,2]
[311063587,1704891175066,-787.87,0.00033698,2]
[311063588,1704891175076,-1113.97,0.00033698,2]
[311063589,1704891175086,-1850.44,0.00033698,2]
[311063590,1704891175096,-875.41,0.00033698,2]
[311063591,1704891175106,-13325.5,0.00033698,2]
[311063592,1704891175117,-622.97,0.00033698,2]
[311063593,1704891175127,-975.55,0.00033698,2]
[311063594,1704891175137,-2699.57,0.00033698,2]
[311063595,1704891175147,-816.51,0.00033698,2]
[311063596,1704891175157,-905.55,0.00033698,2]
[311063597,1704891175167,-602.85,0.00033698,2]
[311063598,1704891175177,-1571.82,0.00033698,2]
[311063599,1704891175187,-1902.92,0.00033698,2]
[311063600,1704891175199,-1172.85,0.00033698,2]
[311063601,1704891175209,-1103.19,0.00033698,2]
[311063602,1704891175220,-551.04,0.00033698,2]
[311063603,1704891175231,-719.09,0.00033698,2]
[311063604,1704891175240,-500.0,0.00033698,2]
[311063605,1704891175251,-500.0,0.00033698,2]
[311063606,1704891175261,-816.66,0.00033698,2]
[311063607,1704891175271,-4042.49,0.00033698,2]
[311063608,1704891175281,-1029.72,0.00033698,2]
[311063609,1704891175291,-711.14,0.00033698,2]
[311063610,1704891175301,-750.11,0.00033698,2]
[311063611,1704891175311,-6582.51,0.00033698,2]
[311063612,1704891175322,-548.8,0.00033698,2]
[311063613,1704891175333,-3983.8,0.00033698,2]
[311063614,1704891175343,-1032.31,0.00033698,2]
[311063615,1704891175354,-541.81,0.00033698,2]
[311063616,1704891175365,-3506.94,0.00033698,2]
[311063617,1704891175375,-1408.06,0.00033698,2]
[311063618,1704891175385,-1081.29,0.00033698,2]
[311063619,1704891175395,-1527.61,0.00033698,2]
[311063620,1704891175405,-660.7,0.00033698,2]
[311063621,1704891175415,-2858.46,0.00033698,2]
[311063622,1704891175425,-8785.85,0.00033698,2]
[311063623,1704891175435,-2768.41,0.00033698,2]
[311063624,1704891175447,-4131.39,0.00033698,2]
[311063625,1704891175458,-2292.41,0.00033698,2]
[311063626,1704891175469,-746.91,0.00033698,2]
[311063627,1704891175480,-2876.26,0.00033698,2]
[311063628,1704891175490,-2170.96,0.00033698,2]
[311063629,1704891175501,-2634.97,0.00033698,2]
[311063630,1704891175511,-1142.75,0.00033698,2]
[311063631,1704891175522,-1716.45,0.00033698,2]
[311063632,1704891175533,-1039.47,0.00033698,2]
[311063633,1704891175543,-3670.86,0.00033698,2]
[311063634,1704891175554,-500.0,0.00033698,2]
[311063635,1704891175564,-500.0,0.00033698,2]
[311063636,1704891175575,-602.26,0.00033698,2]
[311063637,1704891175585,-500.0,0.00033698,2]
[311063638,1704891175594,-614.41,0.00033698,2]
[311063639,1704891175604,-2195.0,0.00033698,2]
[311063640,1704891175615,-1673.5,0.00033698,2]
[311063641,1704891175625,-2390.42,0.00033698,2]
[311063642,1704891175635,-3651.48,0.00033698,2]
[311063643,1704891175645,-5390.38,0.00033698,2]
[311063644,1704891175655,-38163.08,0.00033698,2]
[311063645,1704891175969,-500.0,0.00033698,2]
[311063646,1704891175980,-1305.31,0.00033698,2]
[311063647,1704891175990,-1396.89,0.00033698,2]
[311063648,1704891176000,-1467.77,0.00033698,2]
[311063649,1704891176010,-1697.53,0.00033698,2]
[311063650,1704891176019,-14627.59,0.00033698,2]
[311063651,1704891176029,-2605.66,0.00033698,2]
[311063652,1704891176039,-500.0,0.00033698,2]
[311063653,1704891176048,-500.0,0.00033698,2]
[311063654,1704891176057,-1698.7,0.00033698,2]
[311063655,1704891176067,-601.21,0.00033698,2]
[311063656,1704891176076,-3381.31,0.00033698,2]
[311063657,1704891176085,-3094.77,0.00033698,2]
[311063658,1704891176094,-999.48,0.00033698,2]
[311063659,1704891176105,-607.81,0.00033698,2]
[311063660,1704891176115,-30990.15,0.00033698,2]
[311063661,1704891176126,-2892.8,0.00033698,2]
[311063662,1704891176136,-5290.12,0.00033698,2]
[311063663,1704891176146,-262.70202105,0.00033698,2]
[311063664,1704891176156,-1578.38,0.00033698,2]
[311063665,1704891176165,-2017.0,0.00033698,2]
[311063666,1704891176175,-840.86,0.00033698,2]
[311063667,1704891176184,-4827.58,0.00033698,2]
[311063668,1704891176194,-500.0,0.00033698,2]
[311063669,1704891176206,-3994.86,0.00033698,2]
[311063670,1704891176215,-1048.25,0.00033698,2]
[311063671,1704891176226,-642.94,0.00033698,2]
[311063672,1704891176236,-1904.14,0.00033698,2]
[311063673,1704891176246,-500.0,0.00033698,2]
[311063674,1704891176256,-539.92,0.00033698,2]
[311063675,1704891176266,-1424.2,0.00033698,2]
[311063676,1704891176276,-1050.78,0.00033698,2]
[311063677,1704891176287,-500.0,0.00033698,2]
[311063678,1704891176297,-2602.05,0.00033698,2]
[311063679,1704891176307,-5503.03,0.00033698,2]
[311063680,1704891176317,-1522.78,0.00033698,2]
[311063681,1704891176328,-2260.26,0.00033698,2]
[311063682,1704891176338,-821.97,0.00033698,2]
[311063683,1704891176351,-753.71,0.00033698,2]
[311063684,1704891176360,-901.27,0.00033698,2]
[311063685,1704891176371,-1838.58,0.00033698,2]
[311063686,1704891176381,-782.96,0.00033698,2]
[311063687,1704891176390,-6384.72,0.00033698,2]
[311063688,1704891176400,-627.49,0.00033698,2]
[311063689,1704891176410,-599.02,0.00033698,2]
[311063690,1704891176420,-500.0,0.00033698,2]
[311063691,1704891176432,-632.63,0.00033698,2]
[311063692,1704891176442,-2196.77,0.00033698,2]
[311063693,1704891176454,-864.41,0.00033698,2]
[311063694,1704891176464,-2505.88,0.00033698,2]
[311063695,1704891176474,-1516.0,0.00033698,2]
[311063696,1704891176483,-6045.31,0.00033698,2]
[311063697,1704891176492,-3365.53,0.00033698,2]
[311063698,1704891176503,-720.09,0.00033698,2]
[311063699,1704891176512,-1765.01,0.00033698,2]
[311063700,1704891176522,-870.91,0.00033698,2]
[311063701,1704891176532,-927.81,0.00033698,2]
[311063702,1704891176542,-2120.01,0.00033698,2]
[311063703,1704891176551,-868.01,0.00033698,2]
[311063704,1704891176560,-1570.4,0.00033698,2]
[311063705,1704891176569,-500.0,0.00033698,2]
[311063706,1704891176579,-767.25,0.00033698,2]
[311063707,1704891176589,-2584.72,0.00033698,2]
[311063708,1704891176599,-5200.93,0.00033698,2]
[311063709,1704891176609,-1450.1,0.00033698,2]
[311063710,1704891176619,-1551.81,0.00033698,2]
[311063711,1704891176629,-602.13,0.00033698,2]
[311063712,1704891176639,-754.64,0.00033698,2]
[311063713,1704891176649,-3512.62,0.00033698,2]
[311063714,1704891176659,-1650.34,0.00033698,2]
[311063715,1704891176668,-500.0,0.00033698,2]
[311063716,1704891176678,-813.75,0.00033698,2]
[311063717,1704891176687,-2261.23,0.00033698,2]
[311063718,1704891176699,-152.0,0.00033799,4]
[311063719,1704891176708,-500.0,0.00033823,2]
[311063720,1704891176718,-150.0,0.00033971,2]
[311063721,1704891176728,-150.0,0.00033971,2]
[311063722,1704891176738,-1305.2,0.00033972,2]
[311063723,1704891176747,-1164.78,0.00033972,2]
[311063724,1704891176760,-632.81,0.00033972,2]
[311063725,1704891176779,-691.12,0.00033972,2]
[311063726,1704891176788,-610.62,0.00033972,2]
[311063727,1704891176798,-570.49,0.00033972,2]
[311063728,1704891176808,-648.06,0.00033972,2]
[311063729,1704891176818,-528.22,0.00033972,2]
[311063730,1704891176827,-500.0,0.00033972,2]
[311063731,1704891176837,-613.28,0.00033972,2]
[311063732,1704891176846,-500.0,0.00033972,2]
[311063733,1704891176856,-606.62,0.00033972,2]
[311063734,1704891176865,-1296.75,0.00033972,2]
[311063735,1704891176875,-539.9,0.00033972,2]
[311063736,1704891176884,-549.61,0.00033972,2]
[311063737,1704891176893,-500.0,0.00033972,2]
[311063738,1704891176903,-500.0,0.00033972,2]
[311063739,1704891176913,-554.24,0.00033972,2]
[311063740,1704891176922,-604.42,0.00033972,2]
[311063741,1704891176932,-500.0,0.00033972,2]
[311063742,1704891176941,-597.45,0.00033972,2]
[311063743,1704891176952,-715.45,0.00033972,2]
[311063744,1704891176964,-731.09,0.00033972,2]
[311063745,1704891176974,-500.0,0.00033972,2]
[311063746,1704891176983,-767.17,0.00033972,2]
[311063747,1704891176993,-1110.47,0.00033972,2]
[311063748,1704891177003,-500.0,0.00033972,2]
[311063749,1704891177012,-914.12,0.00033972,2]
[311063750,1704891177022,-843.45,0.00033972,2]
[311063751,1704891177032,-540.71,0.00033972,2]
[311063752,1704891177042,-500.0,0.00033972,2]
[311063753,1704891177052,-833.64,0.00033972,2]
[311063754,1704891177065,-919.36,0.00033972,2]
[311063755,1704891177074,-249.18716007,0.00033972,2]
[311063756,1704891177083,-500.0,0.00033972,2]
[311063757,1704891177093,-780.81,0.00033972,4]
[311063758,1704891177103,-673.2,0.00033972,2]
[311063759,1704891177112,-549.17,0.00033972,2]
[311063760,1704891177122,-592.78,0.00033972,10]
[311063761,1704891177132,-929.48,0.00033972,2]
[311063762,1704891177142,-500.0,0.00033972,2]
[311063763,1704891177151,-783.37,0.00033972,2]
[311063764,1704891177161,-500.0,0.00033972,2]
[311063765,1704891177171,-526.95,0.00033972,2]
[311063766,1704891177181,-500.0,0.00033972,2]
[311063767,1704891177191,-796.39,0.00033972,2]
[311063768,1704891177202,-718.34,0.00033972,2]
[311063769,1704891177211,-500.0,0.00033972,2]
[311063770,1704891177221,-516.97,0.00033972,2]
[311063771,1704891177231,-603.93,0.00033972,2]
[311063772,1704891177241,-953.36,0.00033972,2]
[311063773,1704891177251,-595.36,0.00033972,2]
[311063774,1704891177261,-999.87,0.00033972,2]
[311063775,1704891177271,-799.61,0.00033972,2]
[311063776,1704891177281,-500.0,0.00033972,2]
[311063777,1704891177292,-679.43,0.00033972,2]
[311063778,1704891177302,-545.66,0.00033972,2]
[311063779,1704891177312,-911.61,0.00033972,2]
[311063780,1704891177322,-608.6,0.00033972,2]
[311063781,1704891177333,-500.0,0.00033972,2]
[311063782,1704891177343,-500.0,0.00033972,2]
[311063783,1704891177353,-528.0,0.00033972,2]
[311063784,1704891177362,-717.61,0.00033972,2]
[311063785,1704891177371,-668.27,0.00033972,2]
[311063786,1704891177381,-500.0,0.00033972,2]
[311063787,1704891177391,-922.19,0.00033972,2]
[311063788,1704891177401,-500.0,0.00033972,2]